fUST/lending_fUST_20241130
["ID","MTS","AMOUNT","RATE_DAILY","PERIOD"]
[343874622,1732979451800,-753.8,0.00026575,3]
[343874624,1732979451812,-509.97,0.00026575,3]
[343874627,1732979451826,-642.35,0.00026575,3]
[343874629,1732979451836,-629.0,0.00026575,3]
[343874631,1732979451846,-500.0,0.00026575,3]
[343874633,1732979451856,-1968.13,0.00026575,3]
[343874635,1732979451867,-591.16038383,0.00026575,3]
[343874637,1732979451878,-500.0,0.00026575,3]
[343874640,1732979451890,-1425.88,0.00026575,3]
[343874642,1732979451904,-500.0,0.00026575,3]
[343874644,1732979451917,-500.0,0.00026575,3]
[343874646,1732979451927,-500.0,0.00026575,3]
[343874649,1732979451936,-10137.96,0.00026575,3]
[343874651,1732979451948,-506.61,0.00026575,3]
[343874653,1732979451960,-500.0,0.00026575,3]
[343874655,1732979451972,-500.0,0.00026575,3]
[343874658,1732979451984,-500.0,0.00026575,3]
[343874660,1732979451995,-500.0,0.00026575,3]
[343874662,1732979452005,-500.0,0.00026575,3]
[343874664,1732979452017,-648.83663311,0.00026575,3]
[343874666,1732979452028,-2117.61,0.00026575,3]
[343874668,1732979452039,-500.0,0.00026575,3]
[343874670,1732979452049,-500.0,0.00026575,3]
[343874672,1732979452060,-877.47,0.00026575,3]
[343874675,1732979452071,-861.66,0.00026575,3]
[343874677,1732979452082,-500.0,0.00026575,3]
[343874679,1732979452094,-924.71,0.00026575,3]
[343874681,1732979452105,-1027.22,0.00026575,3]
[343874683,1732979452117,-500.0,0.00026575,3]
[343874686,1732979452127,-743.0,0.00026617,2]
[343874688,1732979452140,-1500.0,0.00026822,2]
[343874690,1732979452151,-1174.3551849,0.00026822,2]
[343874692,1732979452163,-500.0,0.00026849,3]
[343874694,1732979452175,-500.0,0.00026849,3]
[343874696,1732979452187,-500.0,0.00026849,3]
[343874699,1732979452198,-500.0,0.00026849,3]
[343874701,1732979452210,-500.0,0.00026849,3]
[343874703,1732979452222,-500.0,0.00026849,3]
[343874706,1732979452234,-500.0,0.00026849,3]
[343874708,1732979452245,-500.0,0.00026849,3]
[343874710,1732979452255,-500.0,0.00026849,3]
[343874712,1732979452266,-500.0,0.00026849,3]
[343874714,1732979452278,-500.0,0.00026849,3]
[343874716,1732979452289,-500.0,0.00026849,3]
[343874718,1732979452301,-500.0,0.00026849,3]
[343874720,1732979452312,-507.64,0.00026849,3]
[343874723,1732979452322,-1800.31,0.00026849,3]
[343874725,1732979452333,-500.0,0.00026849,3]
[343874727,1732979452343,-200.0,0.00026849,3]
[343874729,1732979452354,-500.0,0.00026849,3]
[343874731,1732979452365,-500.0,0.00026849,3]
[343874733,1732979452376,-500.0,0.00026849,3]
[343874735,1732979452386,-500.0,0.00026849,3]
[343874738,1732979452399,-500.0,0.00026849,3]
[343874740,1732979452410,-500.0,0.00026849,3]
[343874742,1732979452421,-500.0,0.00026849,3]
[343874744,1732979452432,-1094.4,0.00026849,3]
[343874746,1732979452444,-2240.92,0.00026849,3]
[343874748,1732979452463,-500.0,0.00026849,3]
[343874750,1732979452474,-740.02,0.00026849,3]
[343874753,1732979452485,-500.0,0.00026849,3]
[343874755,1732979452495,-500.0,0.00026849,3]
[343874757,1732979452507,-500.0,0.00026849,3]
[343874759,1732979452518,-1595.71,0.00026849,2]
[343874761,1732979452531,-500.0,0.00026849,3]
[343874763,1732979452541,-500.0,0.00026849,3]
[343874766,1732979452553,-5075.65,0.00026849,3]
[343874768,1732979452564,-500.0,0.00026849,3]
[343874770,1732979452575,-559.79,0.00026849,3]
[343874772,1732979452586,-753.8,0.00026849,3]
[343874774,1732979452595,-509.97,0.00026849,3]
[343874776,1732979452604,-1968.13,0.00026849,3]
[343874778,1732979452614,-500.0,0.00026849,3]
[343874780,1732979452624,-1425.88,0.00026849,3]
[343874782,1732979452633,-500.0,0.00026849,3]
[343874798,1732979452776,-500.0,0.00026849,3]
[343874800,1732979452787,-500.0,0.00026849,3]
[343874802,1732979452796,-10137.96,0.00026849,3]
[343874804,1732979452806,-506.61,0.00026849,3]
[343874806,1732979452815,-500.0,0.00026849,3]
[343874808,1732979452824,-500.0,0.00026849,3]
[343874810,1732979452834,-500.0,0.00026849,3]
[343874812,1732979452844,-500.0,0.00026849,3]
[343874814,1732979452854,-500.0,0.00026849,3]
[343874816,1732979452863,-2117.61,0.00026849,3]
[343874818,1732979452873,-500.0,0.00026849,3]
[343874820,1732979452882,-500.0,0.00026849,3]
[343874822,1732979452894,-877.47,0.00026849,3]
[343874824,1732979452903,-861.66,0.00026849,3]
[343874826,1732979452913,-500.0,0.00026849,3]
[343874828,1732979452922,-924.71,0.00026849,3]
[343874830,1732979452931,-1027.22,0.00026849,3]
[343874832,1732979452941,-640.15,0.00026849,3]
[343874834,1732979452950,-752.95346202,0.00026898,2]
[343874836,1732979452960,-152.657716,0.00026974,2]
[343874838,1732979452970,-174.341765,0.00026974,2]
[343874840,1732979452979,-300.0,0.00027,2]
[343874842,1732979452988,-264.41854052,0.00027122,2]
[343874844,1732979452997,-1546.29466096,0.00027122,2]
[343874846,1732979453007,-500.0,0.00027123,3]
[343874848,1732979453017,-500.0,0.00027123,3]
[343874850,1732979453027,-500.0,0.00027123,3]
[343874852,1732979453037,-500.0,0.00027123,3]
[343874854,1732979453046,-500.0,0.00027123,3]
[343874856,1732979453056,-312.38,0.00027123,3]
[343874859,1732979453066,-500.0,0.00027123,3]
[343874861,1732979453075,-500.0,0.00027123,3]
[343874863,1732979453086,-500.0,0.00027123,3]
[343874865,1732979453095,-500.0,0.00027123,3]
[343874867,1732979453104,-500.0,0.00027123,3]
[343874869,1732979453114,-500.0,0.00027123,3]
[343874871,1732979453123,-500.0,0.00027123,3]
[343874873,1732979453135,-507.64,0.00027123,3]
[343874875,1732979453147,-1800.31,0.00027123,3]
[343874877,1732979453163,-500.0,0.00027123,3]
[343874880,1732979453174,-200.0,0.00027123,3]
[343874881,1732979453184,-500.0,0.00027123,3]
[343874884,1732979453194,-500.0,0.00027123,3]
[343874886,1732979453204,-500.0,0.00027123,3]
[343874888,1732979453214,-500.0,0.00027123,3]
[343874890,1732979453223,-500.0,0.00027123,3]
[343874892,1732979453232,-500.0,0.00027123,3]
[343874894,1732979453242,-500.0,0.00027123,3]
[343874896,1732979453253,-1094.4,0.00027123,3]
[343874898,1732979453262,-2240.92,0.00027123,3]
[343874900,1732979453273,-500.0,0.00027123,3]
[343874902,1732979453283,-740.02,0.00027123,3]
[343874904,1732979453293,-500.0,0.00027123,3]
[343874906,1732979453303,-500.0,0.00027123,3]
[343874908,1732979453313,-500.0,0.00027123,3]
[343874910,1732979453322,-1595.71,0.00027123,2]
[343874912,1732979453331,-500.0,0.00027123,3]
[343874914,1732979453340,-500.0,0.00027123,3]
[343874916,1732979453350,-5075.65,0.00027123,3]
[343874918,1732979453359,-500.0,0.00027123,3]
[343874920,1732979453368,-559.79,0.00027123,3]
[343874922,1732979453377,-753.8,0.00027123,3]
[343874924,1732979453386,-509.97,0.00027123,3]
[343874926,1732979453402,-1968.13,0.00027123,3]
[343874928,1732979453410,-500.0,0.00027123,3]
[343874930,1732979453419,-1425.88,0.00027123,3]
[343874932,1732979453428,-500.0,0.00027123,3]
[343874934,1732979453438,-500.0,0.00027123,3]
[343874936,1732979453448,-10137.96,0.00027123,3]
[343874938,1732979453459,-506.61,0.00027123,3]
[343874940,1732979453468,-500.0,0.00027123,3]
[343874942,1732979453477,-500.0,0.00027123,3]
[343874944,1732979453487,-500.0,0.00027123,3]
[343874947,1732979453496,-500.0,0.00027123,3]
[343874949,1732979453504,-500.0,0.00027123,3]
[343874950,1732979453513,-2117.61,0.00027123,3]
[343874952,1732979453523,-350.07,0.00027123,3]
[343874954,1732979453532,-500.0,0.00027123,3]
[343874956,1732979453541,-877.47,0.00027123,3]
[343874958,1732979453550,-861.66,0.00027123,3]
[343874960,1732979453559,-500.0,0.00027123,3]
[343874962,1732979453568,-924.71,0.00027123,3]
[343874965,1732979453578,-1027.22,0.00027123,3]
[343874967,1732979453587,-151.0,0.00027174,5]
[343874969,1732979453596,-697.367063,0.00027311,2]
[343874970,1732979453605,-752.95346202,0.00027321,2]
[343874972,1732979453614,-500.0,0.00027349,10]
[343874974,1732979453624,-500.0,0.00027372,10]
[343874976,1732979453633,-500.0,0.00027397,3]
[343874979,1732979453645,-500.0,0.00027397,3]
[343874981,1732979453654,-500.0,0.00027397,2]
[343874983,1732979453664,-500.0,0.00027397,3]
[343874985,1732979453672,-324.43072974,0.00027397,3]
[343874987,1732979453682,-500.0,0.00027397,3]
[343874989,1732979453691,-364.03,0.00027397,3]
[343874991,1732979453700,-500.0,0.00027397,3]
[343874993,1732979453711,-500.0,0.00027397,3]
[343874995,1732979453720,-500.0,0.00027397,3]
[343874997,1732979453730,-500.0,0.00027397,3]
[343874999,1732979453739,-254.38365689,0.00027397,3]
[343875001,1732979453748,-507.64,0.00027397,3]
[343875003,1732979453758,-1800.31,0.00027397,3]
[343875005,1732979453767,-500.0,0.00027397,3]
[343875007,1732979453776,-500.0,0.00027397,3]
[343875009,1732979453784,-500.0,0.00027397,3]
[343875011,1732979453794,-560.37813416,0.00027397,3]
[343875013,1732979453803,-500.0,0.00027397,3]
[343875015,1732979453811,-200.0,0.00027397,3]
[343875017,1732979453820,-440.10167866,0.00027397,3]
[343875019,1732979453829,-500.0,0.00027397,3]
[343875021,1732979453839,-500.0,0.00027397,3]
[343875023,1732979453847,-500.0,0.00027397,3]
[343875025,1732979453856,-500.0,0.00027397,3]
[343875027,1732979453865,-500.0,0.00027397,3]
[343875029,1732979453875,-247.36,0.00027397,3]
[343875031,1732979453883,-1094.4,0.00027397,3]
[343875033,1732979453895,-2240.92,0.00027397,3]
[343875035,1732979453904,-500.0,0.00027397,3]
[343875037,1732979453913,-740.02,0.00027397,3]
[343875039,1732979453923,-500.0,0.00027397,3]
[343875041,1732979453932,-500.0,0.00027397,3]
[343875043,1732979453942,-500.0,0.00027397,3]
[343875045,1732979453951,-1595.71,0.00027397,2]
[343875047,1732979453960,-577.08977563,0.00027397,3]
[343875049,1732979453970,-500.0,0.00027397,3]
[343875051,1732979453980,-5075.65,0.00027397,3]
[343875053,1732979453990,-500.0,0.00027397,3]
[343875055,1732979454000,-559.79,0.00027397,3]
[343875057,1732979454009,-753.8,0.00027397,3]
[343875059,1732979454019,-509.97,0.00027397,3]
[343875061,1732979454028,-1968.13,0.00027397,3]
[343875063,1732979454038,-500.0,0.00027397,3]
[343875065,1732979454047,-1425.88,0.00027397,3]
[343875067,1732979454056,-500.0,0.00027397,3]
[343875069,1732979454066,-500.0,0.00027397,3]
[343875071,1732979454076,-500.0,0.00027397,3]
[343875073,1732979454085,-150.12,0.00027397,3]
[343875075,1732979454095,-500.0,0.00027397,3]
[343875077,1732979454105,-10137.96,0.00027397,3]
[343875079,1732979454115,-506.61,0.00027397,3]
[343875081,1732979454124,-500.0,0.00027397,3]
[343875083,1732979454134,-500.0,0.00027397,3]
[343875085,1732979454147,-500.0,0.00027397,3]
[343875087,1732979454156,-500.0,0.00027397,3]
[343875089,1732979454166,-500.0,0.00027397,3]
[343875091,1732979454175,-2117.61,0.00027397,3]
[343875093,1732979454184,-500.0,0.00027397,3]
[343875095,1732979454194,-877.47,0.00027397,3]
[343875097,1732979454204,-861.66,0.00027397,3]
[343875099,1732979454214,-500.0,0.00027397,3]
[343875101,1732979454223,-924.71,0.00027397,3]
[343875103,1732979454233,-1027.22,0.00027397,3]
[343875105,1732979454243,-300.0,0.000274,2]
[343875108,1732979454253,-5000.0,0.00027402,7]
[343875110,1732979454263,-174.341765,0.00027423,2]
[343875111,1732979454273,-1413.31356856,0.00027423,2]
[343875114,1732979454283,-1379.08111893,0.0002749,2]
[343875122,1732979454353,-17568.50000001,0.0002749,2]
[343879178,1732979698459,1442.3898322,0.00030479,120]
[343879192,1732979985292,163.297666,0.00013973,2]
[343879196,1732980279110,2590.84156183,0.0003048,120]
[343879197,1732980347218,395.55873272,0.00030137,120]
[343879201,1732980458358,328.0,0.0003,120]
[343879205,1732980491975,800.0,0.000265,120]
[343879206,1732980519290,11533.75563125,0.0001,2]
[343879207,1732980519323,2621.00831601,0.0001,2]
[343879208,1732980523359,1748.29018771,0.000109,2]
[343879232,1732980632836,-3461.55670026,0.00018456,2]
[343879233,1732980632883,-930.11749054,0.00018456,2]
[343879250,1732980638948,-608.3258092,0.00018456,2]
[343879251,1732980638957,-200.79057921,0.00018542,3]
[343879252,1732980638967,-5000.0,0.00018642,2]
[343879253,1732980638976,-300.0,0.00018915,2]
[343879254,1732980638986,-300.0,0.00018916,2]
[343879255,1732980638995,-1169.27083333,0.0002,2]
[343879256,1732980639004,-1428.35764264,0.0002,2]
[343879257,1732980639014,-2066.2391966,0.00020377,2]
[343879259,1732980639023,-420.0,0.00020619,2]
[343879261,1732980639032,-420.0,0.00020808,2]
[343879263,1732980639042,-529.99258821,0.00021324,2]
[343879265,1732980639051,-331.81337607,0.00021417,2]
[343879266,1732980639060,-227.71794375,0.00021418,2]
[343879279,1732980640798,-24672.28205625,0.00021418,2]
[343879280,1732980640808,-324.80077,0.00021424,2]
[343879281,1732980640818,-158.0,0.00022,2]
[343879282,1732980640827,-587.0,0.00022477,2]
[343879283,1732980640836,-379.34025229,0.00022608,2]
[343879284,1732980640848,-500.0,0.00022608,2]
[343879285,1732980640858,-500.0,0.00022608,2]
[343879286,1732980640867,-500.0,0.00022608,2]
[343879287,1732980640980,-500.0,0.00022608,2]
[343879288,1732980640990,-500.0,0.00022608,2]
[343879289,1732980641000,-500.0,0.00022608,2]
[343879290,1732980641010,-500.0,0.00022608,2]
[343879291,1732980641020,-500.0,0.00022608,2]
[343879292,1732980641029,-500.0,0.00022608,2]
[343879293,1732980641039,-500.0,0.00022608,2]
[343879294,1732980641048,-500.0,0.00022608,2]
[343879295,1732980641058,-416.68494958,0.00022608,2]
[343879296,1732980641067,-500.0,0.00022608,2]
[343879297,1732980641077,-500.0,0.00022608,2]
[343879298,1732980641086,-500.0,0.00022608,2]
[343879299,1732980641096,-500.0,0.00022608,2]
[343879300,1732980641106,-500.0,0.00022608,2]
[343879301,1732980641116,-500.0,0.00022608,2]
[343879302,1732980641126,-517.36249384,0.00022608,2]
[343879303,1732980641136,-500.0,0.00022608,2]
[343879304,1732980641145,-500.0,0.00022608,2]
[343879305,1732980641155,-500.0,0.00022608,2]
[343879306,1732980641165,-500.0,0.00022608,2]
[343879307,1732980641174,-500.0,0.00022608,2]
[343879308,1732980641184,-500.0,0.00022608,2]
[343879309,1732980641193,-500.0,0.00022608,2]
[343879310,1732980641204,-500.0,0.00022608,2]
[343879311,1732980641214,-500.0,0.00022608,2]
[343879312,1732980641224,-500.0,0.00022608,2]
[343879313,1732980641234,-500.0,0.00022608,2]
[343879314,1732980641244,-500.0,0.00022608,2]
[343879315,1732980641254,-500.0,0.00022608,2]
[343879316,1732980641264,-500.0,0.00022608,2]
[343879317,1732980641274,-500.0,0.00022608,2]
[343879318,1732980641283,-500.0,0.00022608,2]
[343879319,1732980641293,-500.0,0.00022608,2]
[343879320,1732980641302,-500.0,0.00022608,2]
[343879321,1732980641312,-500.0,0.00022608,2]
[343879322,1732980641321,-500.0,0.00022608,2]
[343879323,1732980641331,-500.0,0.00022608,2]
[343879324,1732980641341,-500.0,0.00022608,2]
[343879325,1732980641350,-500.0,0.00022608,2]
[343879326,1732980641360,-76.77254287,0.00022608,2]
[343879342,1732980644177,-5000.0,0.00021203,2]
[343879343,1732980644188,-423.22745713,0.00022608,2]
[343879344,1732980644198,-500.0,0.00022608,2]
[343879345,1732980644220,-500.0,0.00022608,2]
[343879346,1732980644235,-446.92934597,0.00022608,2]
[343879347,1732980644245,-500.0,0.00022608,2]
[343879348,1732980644255,-500.0,0.00022608,2]
[343879349,1732980644265,-500.0,0.00022608,2]
[343879350,1732980644276,-151.7107096,0.00022608,2]
[343879351,1732980644293,-348.2892904,0.00022608,2]
[343879352,1732980644304,-500.0,0.00022608,2]
[343879353,1732980644322,-500.0,0.00022608,2]
[343879354,1732980644333,-500.0,0.00022608,2]
[343879356,1732980644343,-500.0,0.00022608,2]
[343879357,1732980644355,-646.50852423,0.00022608,2]
[343879358,1732980644366,-500.0,0.00022608,2]
[343879359,1732980644376,-500.0,0.00022608,2]
[343879360,1732980644386,-500.0,0.00022608,2]
[343879361,1732980644396,-500.0,0.00022608,2]
[343879362,1732980644406,-500.0,0.00022608,2]
[343879363,1732980644416,-500.0,0.00022608,2]
[343879364,1732980644426,-529.99258821,0.00022609,2]
[343879365,1732980644436,-403.0,0.00022888,2]
[343879366,1732980644448,-164.213002,0.00023562,2]
[343879367,1732980644458,-529.99258821,0.00023895,2]
[343879368,1732980644468,-174.41251254,0.00024444,2]
[343879369,1732980644480,-532.69673102,0.00024444,2]
[343879380,1732980645844,-81492.40940066,0.00024444,2]
[343879381,1732980645858,-823.0,0.00024502,2]
[343879382,1732980645868,-4235.86704549,0.00024557,3]
[343879383,1732980645879,-500.0,0.00024657,3]
[343879384,1732980645890,-500.0,0.00024657,3]
[343879385,1732980645900,-500.0,0.00024657,3]
[343879386,1732980645910,-500.0,0.00024657,3]
[343879387,1732980645920,-374.7818284,0.00024657,3]
[343879388,1732980645931,-500.0,0.00024657,3]
[343879389,1732980645941,-500.0,0.00024657,3]
[343879390,1732980645953,-435.48590087,0.00024657,3]
[343879391,1732980645963,-500.0,0.00024657,3]
[343879392,1732980645973,-500.0,0.00024657,3]
[343879393,1732980645984,-500.0,0.00024657,3]
[343879394,1732980645995,-500.0,0.00024657,3]
[343879395,1732980646004,-500.0,0.00024657,3]
[343879396,1732980646014,-500.0,0.00024657,3]
[343879397,1732980646024,-500.0,0.00024657,3]
[343879398,1732980646034,-500.0,0.00024657,3]
[343879399,1732980646043,-500.0,0.00024657,3]
[343879400,1732980646053,-500.0,0.00024657,3]
[343879401,1732980646063,-500.0,0.00024657,3]
[343879402,1732980646073,-500.0,0.00024657,3]
[343879403,1732980646082,-500.0,0.00024657,3]
[343879404,1732980646092,-500.0,0.00024657,3]
[343879405,1732980646102,-500.0,0.00024657,3]
[343879406,1732980646111,-500.0,0.00024657,3]
[343879407,1732980646122,-267.91226214,0.00024657,3]
[343879408,1732980646134,-502.82799923,0.00024657,3]
[343879409,1732980646144,-518.61044865,0.00024657,3]
[343879410,1732980646154,-502.36685873,0.00024657,3]
[343879411,1732980646163,-500.0,0.00024657,3]
[343879412,1732980646173,-596.63540781,0.00024657,3]
[343879413,1732980646183,-172.1506074,0.00024657,3]
[343879414,1732980646192,-502.15117397,0.00024657,3]
[343879415,1732980646203,-501.03,0.00024657,3]
[343879416,1732980646214,-501.9928741,0.00024657,3]
[343879417,1732980646224,-500.0,0.00024657,3]
[343879418,1732980646233,-502.34980317,0.00024657,3]
[343879419,1732980646243,-345.72628475,0.00024657,3]
[343879420,1732980646253,-502.2074583,0.00024657,3]
[343879421,1732980646265,-505.49101257,0.00024657,3]
[343879422,1732980646275,-501.46843837,0.00024657,3]
[343879423,1732980646285,-500.0,0.00024657,3]
[343879424,1732980646295,-200.0,0.00024657,3]
[343879425,1732980646305,-501.13119253,0.00024657,3]
[343879426,1732980646314,-500.0,0.00024657,3]
[343879427,1732980646324,-500.0,0.00024657,3]
[343879428,1732980646334,-547.12798929,0.00024657,3]
[343879429,1732980646343,-500.0,0.00024657,3]
[343879430,1732980646353,-544.58106159,0.00024657,3]
[343879431,1732980646363,-500.0,0.00024657,3]
[343879432,1732980646373,-500.0,0.00024657,3]
[343879433,1732980646383,-500.0,0.00024657,3]
[343879434,1732980646392,-500.0,0.00024657,3]
[343879435,1732980646402,-500.0,0.00024657,3]
[343879436,1732980646412,-500.0,0.00024657,3]
[343879437,1732980646422,-500.0,0.00024657,3]
[343879438,1732980646432,-500.0,0.00024657,3]
[343879439,1732980646442,-500.0,0.00024657,3]
[343879440,1732980646453,-500.0,0.00024657,3]
[343879441,1732980646462,-512.09331131,0.00024657,3]
[343879442,1732980646472,-636.65,0.00024657,3]
[343879443,1732980646482,-500.0,0.00024657,3]
[343879444,1732980646492,-163.42769984,0.00024657,3]
[343879445,1732980646502,-500.0,0.00024657,3]
[343879446,1732980646512,-502.13867193,0.00024657,3]
[343879447,1732980646523,-500.0,0.00024657,3]
[343879448,1732980646533,-513.94488961,0.00024657,3]
[343879449,1732980646543,-542.44187693,0.00024657,3]
[343879450,1732980646553,-500.0,0.00024657,3]
[343879451,1732980646563,-500.0,0.00024657,3]
[343879452,1732980646573,-500.0,0.00024657,3]
[343879453,1732980646583,-500.0,0.00024657,3]
[343879454,1732980646593,-512.72193512,0.00024657,3]
[343879455,1732980646602,-500.0,0.00024657,3]
[343879456,1732980646612,-506.48297114,0.00024657,3]
[343879457,1732980646622,-504.12349336,0.00024657,3]
[343879458,1732980646631,-500.0,0.00024657,3]
[343879459,1732980646641,-500.0,0.00024657,3]
[343879460,1732980646651,-500.0,0.00024657,3]
[343879461,1732980646661,-500.0,0.00024657,3]
[343879462,1732980646671,-755.32,0.00024657,3]
[343879463,1732980646680,-549.07416287,0.00024657,3]
[343879464,1732980646690,-500.0,0.00024657,3]
[343879465,1732980646700,-500.0,0.00024657,3]
[343879466,1732980646710,-662.22,0.00024657,3]
[343879467,1732980646719,-500.0,0.00024657,3]
[343879468,1732980646730,-534.23972136,0.00024657,3]
[343879469,1732980646739,-534.03,0.00024657,3]
[343879470,1732980646750,-500.0,0.00024657,3]
[343879471,1732980646760,-559.69,0.00024657,3]
[343879472,1732980646770,-486.28411944,0.00024657,3]
[343879473,1732980646780,-509.81059491,0.00024657,3]
[343879474,1732980646790,-500.0,0.00024657,3]
[343879475,1732980646800,-500.0,0.00024657,3]
[343879476,1732980646810,-168.8203895,0.00024657,3]
[343879477,1732980646820,-500.0,0.00024657,3]
[343879478,1732980646831,-500.0,0.00024657,3]
[343879479,1732980646841,-495.0,0.00024657,3]
[343879480,1732980646854,-500.0,0.00024657,3]
[343879481,1732980646864,-500.0,0.00024657,3]
[343879482,1732980646874,-500.0,0.00024657,3]
[343879483,1732980646884,-500.0,0.00024657,3]
[343879484,1732980646894,-500.0,0.00024657,3]
[343879485,1732980646904,-608.92619301,0.00024657,3]
[343879486,1732980646914,-500.0,0.00024657,3]
[343879487,1732980646924,-500.0,0.00024657,3]
[343879488,1732980646934,-500.0,0.00024657,3]
[343879489,1732980646944,-500.0,0.00024657,3]
[343879490,1732980646955,-500.0,0.00024657,3]
[343879491,1732980647078,-500.0,0.00024657,3]
[343879492,1732980647088,-500.0,0.00024657,3]
[343879493,1732980647098,-500.0,0.00024657,3]
[343879494,1732980647108,-500.0,0.00024657,3]
[343879495,1732980647119,-500.0,0.00024657,3]
[343879496,1732980647128,-500.0,0.00024657,3]
[343879497,1732980647137,-575.86,0.00024657,3]
[343879498,1732980647147,-1060.04,0.00024657,3]
[343879499,1732980647156,-208.40700853,0.00024657,3]
[343879500,1732980647167,-500.0,0.00024657,3]
[343879501,1732980647176,-500.0,0.00024657,3]
[343879502,1732980647186,-500.0,0.00024657,3]
[343879503,1732980647196,-504.76149782,0.00024657,3]
[343879504,1732980647208,-500.0,0.00024657,3]
[343879505,1732980647217,-500.0,0.00024657,3]
[343879506,1732980647227,-500.0,0.00024657,3]
[343879507,1732980647236,-500.0,0.00024657,3]
[343879508,1732980647246,-500.0,0.00024657,2]
[343879509,1732980647255,-500.0,0.00024657,3]
[343879510,1732980647265,-500.0,0.00024657,3]
[343879511,1732980647275,-500.0,0.00024657,3]
[343879512,1732980647285,-500.76900726,0.00024657,3]
[343879513,1732980647296,-500.0,0.00024657,3]
[343879514,1732980647307,-500.0,0.00024657,3]
[343879515,1732980647318,-500.0,0.00024657,3]
[343879516,1732980647329,-500.0,0.00024657,3]
[343879517,1732980647341,-500.0,0.00024657,3]
[343879518,1732980647351,-500.0,0.00024657,3]
[343879519,1732980647361,-587.90860287,0.00024657,3]
[343879520,1732980647372,-500.0,0.00024657,3]
[343879521,1732980647382,-656.65,0.00024657,3]
[343879522,1732980647392,-500.0,0.00024657,3]
[343879523,1732980647401,-626.46,0.00024657,3]
[343879524,1732980647411,-500.0,0.00024657,3]
[343879525,1732980647421,-1088.58,0.00024657,3]
[343879526,1732980647431,-500.0,0.00024657,3]
[343879527,1732980647441,-500.0,0.00024657,3]
[343879528,1732980647452,-500.0,0.00024657,3]
[343879529,1732980647461,-500.0,0.00024657,3]
[343879530,1732980647472,-500.0,0.00024657,3]
[343879531,1732980647481,-500.0,0.00024657,3]
[343879532,1732980647491,-500.0,0.00024657,3]
[343879533,1732980647500,-163.00376657,0.00024657,3]
[343879534,1732980647510,-500.0,0.00024657,3]
[343879535,1732980647519,-500.0,0.00024657,3]
[343879536,1732980647529,-500.0,0.00024657,3]
[343879537,1732980647540,-500.0,0.00024657,3]
[343879538,1732980647549,-500.0,0.00024657,3]
[343879539,1732980647558,-500.0,0.00024657,3]
[343879540,1732980647568,-500.0,0.00024657,3]
[343879541,1732980647577,-634.2,0.00024657,3]
[343879542,1732980647591,-500.0,0.00024657,3]
[343879543,1732980647606,-500.0,0.00024657,3]
[343879544,1732980647617,-500.0,0.00024657,3]
[343879545,1732980647627,-500.0,0.00024657,3]
[343879546,1732980647638,-578.63953541,0.00024657,3]
[343879547,1732980647649,-500.0,0.00024657,3]